{"text_format":"1","workbook":"xlsx","n_sheets":1,"sheets":["Sheet1"],"not_rendered":{"charts":0,"images":1,"macros":1,"external_links":0,"defined_names":0,"comments":0,"pivot_tables":0},"unopened":[],"bounds":{"document_bytes":16777216,"sheet_cells":100000,"rows_first":2000,"rows_last":500,"rows_between":2000,"halvings":0,"cell_chars":16384,"cell_head_chars":4096},"cells_cut":0,"cells_raw":0,"read":"whole","date_system":"1900"}

{"sheet":"Sheet1","index":0,"n_rows":38,"n_cols":9,"rows_kept":38,"cut":false,"hidden":false,"merged":[]}
[]
[null,null,null,null,"123j"]
[]
[null,null,"#","الرقم ","الرقم الوظيفي ","الاسم","الفرع","رقم الموبايل","مساعد"]
[null,null,1,498,123,"Junior ","فرع 2",59458686,{"$f":"Data[[#This Row],[الرقم الوظيفي ]]&Data[[#This Row],[الاسم]]","v":"123Junior "}]
[null,null,2,829,124,"Junior ","فرع 2",59458687,{"$f":"Data[[#This Row],[الرقم الوظيفي ]]&Data[[#This Row],[الاسم]]","v":"124Junior "}]
[null,null,3,110,125,"Junior ","فرع 6",59458688,{"$f":"Data[[#This Row],[الرقم الوظيفي ]]&Data[[#This Row],[الاسم]]","v":"125Junior "}]
[null,null,4,258,126,"Junior ","فرع 2",59458689,{"$f":"Data[[#This Row],[الرقم الوظيفي ]]&Data[[#This Row],[الاسم]]","v":"126Junior "}]
[null,null,5,328,127,"Junior ","فرع 5",59458690,{"$f":"Data[[#This Row],[الرقم الوظيفي ]]&Data[[#This Row],[الاسم]]","v":"127Junior "}]
[null,null,6,369,128,"Junior ","فرع 6",59458691,{"$f":"Data[[#This Row],[الرقم الوظيفي ]]&Data[[#This Row],[الاسم]]","v":"128Junior "}]
[null,null,7,375,129,"Junior ","فرع 3",59458692,{"$f":"Data[[#This Row],[الرقم الوظيفي ]]&Data[[#This Row],[الاسم]]","v":"129Junior "}]
[null,null,8,778,130,"Junior ","فرع 3",59458693,{"$f":"Data[[#This Row],[الرقم الوظيفي ]]&Data[[#This Row],[الاسم]]","v":"130Junior "}]
[null,null,9,826,131,"Junior ","فرع 1",59458694,{"$f":"Data[[#This Row],[الرقم الوظيفي ]]&Data[[#This Row],[الاسم]]","v":"131Junior "}]
[null,null,10,794,132,"Junior ","فرع 5",59458695,{"$f":"Data[[#This Row],[الرقم الوظيفي ]]&Data[[#This Row],[الاسم]]","v":"132Junior "}]
[null,null,11,705,133,"Junior ","فرع 7",59458696,{"$f":"Data[[#This Row],[الرقم الوظيفي ]]&Data[[#This Row],[الاسم]]","v":"133Junior "}]
[null,null,12,724,134,"Junior ","فرع 8",59458697,{"$f":"Data[[#This Row],[الرقم الوظيفي ]]&Data[[#This Row],[الاسم]]","v":"134Junior "}]
[null,null,13,713,135,"Junior ","فرع 2",59458698,{"$f":"Data[[#This Row],[الرقم الوظيفي ]]&Data[[#This Row],[الاسم]]","v":"135Junior "}]
[null,null,14,830,136,"Junior ","فرع 3",59458699,{"$f":"Data[[#This Row],[الرقم الوظيفي ]]&Data[[#This Row],[الاسم]]","v":"136Junior "}]
[null,null,15,796,137,"Junior ","فرع 1",59458700,{"$f":"Data[[#This Row],[الرقم الوظيفي ]]&Data[[#This Row],[الاسم]]","v":"137Junior "}]
[null,null,16,857,138,"Junior ","فرع 5",59458701,{"$f":"Data[[#This Row],[الرقم الوظيفي ]]&Data[[#This Row],[الاسم]]","v":"138Junior "}]
[null,null,17,714,139,"Junior ","فرع 6",59458702,{"$f":"Data[[#This Row],[الرقم الوظيفي ]]&Data[[#This Row],[الاسم]]","v":"139Junior "}]
[null,null,18,829,140,"Junior ","فرع 2",59458687,{"$f":"Data[[#This Row],[الرقم الوظيفي ]]&Data[[#This Row],[الاسم]]","v":"140Junior "}]
[null,null,19,110,141,"Junior ","فرع 6",59458688,{"$f":"Data[[#This Row],[الرقم الوظيفي ]]&Data[[#This Row],[الاسم]]","v":"141Junior "}]
[null,null,20,258,142,"Junior ","فرع 2",59458689,{"$f":"Data[[#This Row],[الرقم الوظيفي ]]&Data[[#This Row],[الاسم]]","v":"142Junior "}]
[null,null,21,328,143,"Junior ","فرع 5",59458690,{"$f":"Data[[#This Row],[الرقم الوظيفي ]]&Data[[#This Row],[الاسم]]","v":"143Junior "}]
[null,null,22,369,144,"Junior ","فرع 6",59458691,{"$f":"Data[[#This Row],[الرقم الوظيفي ]]&Data[[#This Row],[الاسم]]","v":"144Junior "}]
[null,null,23,375,145,"Junior ","فرع 3",59458692,{"$f":"Data[[#This Row],[الرقم الوظيفي ]]&Data[[#This Row],[الاسم]]","v":"145Junior "}]
[null,null,24,778,146,"Junior ","فرع 3",59458693,{"$f":"Data[[#This Row],[الرقم الوظيفي ]]&Data[[#This Row],[الاسم]]","v":"146Junior "}]
[null,null,25,826,147,"Junior ","فرع 1",59458694,{"$f":"Data[[#This Row],[الرقم الوظيفي ]]&Data[[#This Row],[الاسم]]","v":"147Junior "}]
[null,null,26,794,148,"Junior ","فرع 5",59458695,{"$f":"Data[[#This Row],[الرقم الوظيفي ]]&Data[[#This Row],[الاسم]]","v":"148Junior "}]
[null,null,27,705,149,"Junior ","فرع 7",59458696,{"$f":"Data[[#This Row],[الرقم الوظيفي ]]&Data[[#This Row],[الاسم]]","v":"149Junior "}]
[null,null,28,724,150,"Junior ","فرع 8",59458697,{"$f":"Data[[#This Row],[الرقم الوظيفي ]]&Data[[#This Row],[الاسم]]","v":"150Junior "}]
[null,null,29,713,151,"Junior ","فرع 2",59458698,{"$f":"Data[[#This Row],[الرقم الوظيفي ]]&Data[[#This Row],[الاسم]]","v":"151Junior "}]
[null,null,30,830,152,"Junior ","فرع 3",59458699,{"$f":"Data[[#This Row],[الرقم الوظيفي ]]&Data[[#This Row],[الاسم]]","v":"152Junior "}]
[null,null,31,796,153,"Junior ","فرع 1",59458700,{"$f":"Data[[#This Row],[الرقم الوظيفي ]]&Data[[#This Row],[الاسم]]","v":"153Junior "}]
[null,null,32,857,154,"Junior ","فرع 5",59458701,{"$f":"Data[[#This Row],[الرقم الوظيفي ]]&Data[[#This Row],[الاسم]]","v":"154Junior "}]
[null,null,33,714,155,"Junior ","فرع 6",59458702,{"$f":"Data[[#This Row],[الرقم الوظيفي ]]&Data[[#This Row],[الاسم]]","v":"155Junior "}]
[null,null,34,545,156,"Junior ","فرع 6",59458699,{"$f":"Data[[#This Row],[الرقم الوظيفي ]]&Data[[#This Row],[الاسم]]","v":"156Junior "}]